fUSD/lending_fUSD_20260105
["ID","MTS","AMOUNT","RATE_DAILY","PERIOD"]
[400474622,1767627038268,-1000.0,0.00017721,2]
[400474624,1767627038278,-1000.0,0.00017721,2]
[400474626,1767627038287,-1000.0,0.00017721,2]
[400474628,1767627038297,-1000.0,0.00017721,2]
[400474630,1767627038306,-1000.0,0.00017721,2]
[400474632,1767627038316,-1000.0,0.00017721,2]
[400474634,1767627038325,-3456.59134094,0.00017738,2]
[400474636,1767627038335,-17167.44441908,0.00017778,2]
[400474638,1767627038345,-3456.59134094,0.00017779,2]
[400474640,1767627038354,-500.0,0.00017788,2]
[400474642,1767627038365,-500.0,0.00017788,2]
[400474644,1767627038375,-500.0,0.00017788,2]
[400474646,1767627038384,-500.0,0.00017788,2]
[400474648,1767627038394,-500.0,0.00017788,2]
[400474650,1767627038403,-500.0,0.00017788,2]
[400474652,1767627038413,-539.01333757,0.00017788,2]
[400474654,1767627038423,-500.0,0.00017788,2]
[400474656,1767627038432,-500.0,0.00017788,2]
[400474658,1767627038441,-500.0,0.00017788,2]
[400474660,1767627038451,-500.0,0.00017788,2]
[400474662,1767627038461,-500.0,0.00017788,2]
[400474664,1767627038471,-500.0,0.00017788,2]
[400474666,1767627038480,-500.0,0.00017788,2]
[400474668,1767627038490,-500.0,0.00017788,2]
[400474670,1767627038499,-500.0,0.00017788,2]
[400474672,1767627038508,-500.0,0.00017788,2]
[400474674,1767627038518,-500.0,0.00017788,2]
[400474676,1767627038528,-290.0,0.00017788,2]
[400474678,1767627038537,-500.0,0.00017788,2]
[400474680,1767627038546,-500.0,0.00017788,2]
[400474682,1767627038555,-500.0,0.00017788,2]
[400474684,1767627038567,-500.0,0.00017788,2]
[400474686,1767627038576,-500.0,0.00017788,2]
[400474688,1767627038585,-500.0,0.00017788,2]
[400474690,1767627038595,-500.0,0.00017788,2]
[400474692,1767627038604,-500.0,0.00017788,2]
[400474694,1767627038613,-500.0,0.00017788,2]
[400474697,1767627038623,-500.0,0.00017788,2]
[400474699,1767627038634,-158.27172845,0.000178,2]
[400474701,1767627038644,-1370.6195,0.000178,2]
[400474703,1767627038653,-1011.0,0.000178,2]
[400474705,1767627038663,-1484.0,0.00017809,2]
[400474707,1767627038672,-213.81408,0.0001782,2]
[400474709,1767627038681,-213.81409,0.0001782,2]
[400474711,1767627038690,-158.27172845,0.00017825,2]
[400474713,1767627038700,-261.94980575,0.0001783,2]
[400474715,1767627038710,-213.81409,0.0001783,2]
[400474717,1767627038719,-158.27172845,0.0001785,2]
[400474719,1767627038729,-243.833,0.00017856,2]
[400474721,1767627038740,-213.81409,0.0001786,2]
[400474723,1767627038750,-512.94571349,0.00017868,2]
[400474725,1767627038759,-205.14174492,0.00017868,2]
[400474727,1767627038773,-252.91835165,0.00017868,2]
[400474729,1767627038783,-282.31662472,0.00017868,2]
[400474731,1767627038794,-158.27172845,0.00017875,2]
[400474734,1767627038803,-213.81409,0.0001788,2]
[400474736,1767627038813,-168.0,0.00017881,2]
[400474737,1767627038823,-763.23,0.00017889,2]
[400474739,1767627038833,-16126.0984,0.000179,2]
[400474741,1767627038842,-201.33708473,0.000179,2]
[400474769,1767627039119,-798.66291527,0.000179,2]
[400474771,1767627039128,-158.27172845,0.000179,2]
[400474773,1767627039139,-1251.99396314,0.000179,2]
[400474775,1767627039148,-213.81409,0.0001791,2]
[400474777,1767627039157,-2167.44732282,0.00017929,2]
[400474780,1767627039171,-1165.51532738,0.00017929,2]
[400474782,1767627039180,-913.0,0.00017936,2]
[400474784,1767627039190,-1200.0,0.00017936,2]
[400474786,1767627039199,-4816.0,0.00017936,2]
[400474788,1767627039208,-2435.0,0.00017936,2]
[400474790,1767627039217,-1329.0,0.00017936,2]
[400474792,1767627039226,-11092.0843635,0.00017953,2]
[400474817,1767627039459,-500.0,0.00017973,2]
[400474820,1767627039468,-182.6941269,0.00017973,2]
[400474822,1767627039478,-500.0,0.00017973,2]
[400474824,1767627039488,-500.0,0.00017973,2]
[400474826,1767627039497,-500.0,0.00017973,2]
[400474828,1767627039506,-500.0,0.00017973,2]
[400474829,1767627039515,-500.0,0.00017973,2]
[400474832,1767627039525,-378.44615396,0.00017973,2]
[400474834,1767627039535,-500.0,0.00017973,2]
[400474835,1767627039545,-500.0,0.00017973,2]
[400474838,1767627039554,-500.0,0.00017973,2]
[400474839,1767627039566,-342.31095789,0.00017973,2]
[400474842,1767627039577,-121717.854327,0.00017995,2]
[400474844,1767627039586,-181.9282088,0.00017995,2]
[400474845,1767627039595,-385.97454992,0.00017999,2]
[400474847,1767627039604,-630126.91047819,0.00018,2]
[400474850,1767627039619,-700524.52211072,0.00018,2]
[400474852,1767627039632,-428024.9909,0.00018,2]
[400474902,1767627040088,-369.40567105,0.00017617,2]
[400474904,1767627040097,-98.97932895,0.00017819,2]
[400474906,1767627040108,-1832.157598,0.00017819,2]
[400474908,1767627040120,-254.957,0.00017819,2]
[400474910,1767627040131,-1270.49741399,0.00017819,2]
[400474912,1767627040140,-11507.79180823,0.00018,2]
[400474915,1767627040155,-66971.88199771,0.00018,2]
[400474917,1767627040166,-60915.67965701,0.00018,2]
[400474919,1767627040177,-60578.22374503,0.00018,2]
[400474921,1767627040188,-7616.11512361,0.00018,2]
[400474932,1767627040291,-7782.43978085,0.00018,2]
[400474941,1767627043650,-1410.6590096,0.00018,2]
[400474942,1767627043671,-555.88535752,0.00018,2]
[400474943,1767627044603,-281.34209607,0.00017657,2]
[400474953,1767627050146,-88.06357498,0.00017657,2]
[400474954,1767627050157,-545.99642501,0.0001786,2]
[400474955,1767627050168,-2910.59491593,0.0001786,2]
[400474956,1767627050177,-29777.25407972,0.00018,2]
[400474957,1767627050188,-178737.2959226,0.00018,2]
[400474958,1767627050198,-263531.5609315,0.00018,2]
[400474959,1767627050208,-266752.96276481,0.00018,2]
[400474960,1767627050219,-1334.00376711,0.00018,2]
[400474961,1767627050231,-58883.05902933,0.00018,2]
[400474962,1767627050267,-151.0,0.00017876,2]
[400474963,1767627050277,-11122.93308587,0.00018,2]
[400474964,1767627050288,-563.17346517,0.00018,2]
[400474965,1767627050300,-13716.2766494,0.00018,2]
[400474966,1767627050316,-761.86263737,0.00018,2]
[400474967,1767627050340,-250.0,0.00017,2]
[400474968,1767627050349,-23606.44793776,0.00018,2]
[400474998,1767627353403,802.055,0.00032877,120]
[400475025,1767627846013,345.8187,0.0003,120]
[400475027,1767627914934,182.66,0.00024846,120]
[400475030,1767628030124,-200.0,0.00016522,2]
[400475031,1767628030144,-200.0,0.00016548,2]
[400475032,1767628030168,-182.66,0.00016564,2]
[400475033,1767628030190,-153.56011349,0.00016681,5]
[400475034,1767628030210,-2971.42050551,0.00016695,2]
[400475035,1767628054120,-999.0,0.00016607,3]
[400475036,1767628054142,-28.18982962,0.00016695,2]
[400475053,1767628232108,-300.0,0.00016562,2]
[400475054,1767628232118,-300.0,0.00016562,2]
[400475055,1767628232128,-508.0,0.00016562,2]
[400475056,1767628232137,-14541.95933953,0.00016563,2]
[400475057,1767628232166,-1891.96778752,0.00016563,2]
[400475058,1767628232177,-1292.2457146,0.00016563,2]
[400475059,1767628232231,-382.35999,0.00016563,2]
[400475060,1767628232243,-499.42980836,0.00016563,2]
[400475061,1767628232255,-4333.10735999,0.00016563,2]
[400475062,1767628232264,-240.38966487,0.00016695,2]
[400475063,1767628232279,-151.54,0.00016737,2]
[400475064,1767628232294,-199.5902407,0.00016959,2]
[400475065,1767628232303,-545.0105798,0.00016971,2]
[400475066,1767628232389,-796.6194202,0.00016971,2]
[400475068,1767628232399,-498.87502691,0.00016986,2]
[400475320,1767628238134,-2202.36600076,0.00016986,2]
[400475321,1767628238147,-615.19451959,0.00016986,2]
[400475322,1767628238159,-3557.83562371,0.00016986,2]
[400475323,1767628238174,-7365.54882903,0.00016986,2]
[400475324,1767628238184,-1000000.0,0.00017034,2]
[400475325,1767628238194,-857.29289412,0.00017059,2]
[400475326,1767628238204,-199.59024066,0.00017093,2]
[400475328,1767628238514,-150.0,0.00017134,2]
[400475329,1767628238524,-500.0,0.00017173,2]
[400475330,1767628238534,-500.0,0.00017173,2]
[400475331,1767628238543,-500.0,0.00017173,2]
[400475333,1767628238552,-500.0,0.00017173,2]
[400475334,1767628238561,-500.0,0.00017173,2]
[400475336,1767628238571,-500.0,0.00017173,2]
[400475337,1767628238580,-500.0,0.00017173,2]
[400475338,1767628238589,-500.0,0.00017173,2]
[400475339,1767628238599,-357.36,0.000172,2]
[400475340,1767628238609,-199.59024066,0.00017228,2]
[400475341,1767628238619,-199.59024066,0.00017362,2]
[400475342,1767628238629,-151.0,0.00017375,2]
[400475343,1767628238639,-151.0,0.00017376,2]
[400475344,1767628238650,-151.0,0.00017376,2]
[400475345,1767628238659,-199.59024066,0.00017497,2]
[400475346,1767628238669,-479.0,0.00017499,2]
[400475347,1767628238679,-1848.86738909,0.000175,2]
[400475348,1767628238688,-500.0,0.0001752,2]
[400475349,1767628238702,-500.0,0.0001752,2]
[400475350,1767628238711,-500.0,0.0001752,2]
[400475351,1767628238720,-272.40106537,0.0001752,2]
[400475352,1767628238730,-500.0,0.0001752,2]
[400475353,1767628238740,-195.066,0.0001752,2]
[400475354,1767628238750,-18062.2062,0.00017521,2]
[400475355,1767628238759,-8399.4876,0.00017521,2]
[400475356,1767628238769,-2500.0,0.00017521,2]
[400475357,1767628238779,-6499.53878648,0.00017529,2]
[400475358,1767628238788,-1661.89655613,0.00017529,2]
[400475359,1767628238798,-714.5352918,0.00017529,2]
[400475360,1767628238807,-158.45968873,0.0001754,2]
[400475361,1767628238817,-6499.53878645,0.0001757,2]
[400475362,1767628238828,-1661.89655609,0.0001757,2]
[400475363,1767628238838,-151.0,0.0001761,2]
[400475364,1767628238848,-151.0,0.0001761,2]
[400475365,1767628238857,-151.0,0.0001761,2]
[400475366,1767628238867,-151.0,0.0001761,2]
[400475367,1767628238877,-151.0,0.0001761,2]
[400475368,1767628238886,-151.0,0.0001761,2]
[400475369,1767628238896,-151.0,0.0001761,2]
[400475370,1767628238905,-198.33115528,0.0001761,2]
[400475371,1767628238915,-6499.53878645,0.00017611,2]
[400475372,1767628238924,-1661.89655609,0.00017611,2]
[400475373,1767628238935,-177.04284615,0.0001762,2]
[400475374,1767628238944,-359.06199945,0.0001762,2]
[400475375,1767628238954,-197.6216373,0.0001762,2]
[400475376,1767628238964,-500.0,0.0001762,2]
[400475377,1767628238973,-597.23624248,0.0001762,2]
[400475378,1767628238983,-577.50868335,0.0001762,2]
[400475379,1767628238993,-38317.96677793,0.00017629,2]
[400475380,1767628239002,-199.59024066,0.00017631,2]
[400475381,1767628239012,-323.98745997,0.0001764,2]
[400475382,1767628239022,-6499.53878645,0.00017653,2]
[400475383,1767628239032,-1661.89655609,0.00017653,2]
[400475384,1767628239042,-1254.62,0.00017671,2]
[400475385,1767628239052,-288.0,0.00017673,2]
[400475386,1767628239061,-6499.53878645,0.00017694,2]
[400475387,1767628239070,-1661.89655609,0.00017694,2]
[400475388,1767628239083,-288.0,0.00017699,2]
[400475389,1767628239094,-924.08307234,0.00017712,2]
[400475390,1767628239104,-714.53529179,0.00017714,2]
[400475391,1767628239113,-1000.0,0.00017721,2]
[400475392,1767628239123,-731.96614317,0.00017721,2]
[400475393,1767628239133,-1000.0,0.00017721,2]
[400475394,1767628239143,-1000.0,0.00017721,2]
[400475395,1767628239152,-1000.0,0.00017721,2]
[400475396,1767628239163,-1000.0,0.00017721,2]
[400475397,1767628239173,-1000.0,0.00017721,2]
[400475398,1767628239183,-1000.0,0.00017721,2]
[400475399,1767628239192,-6499.53878645,0.00017735,2]
[400475400,1767628239202,-1661.89655609,0.00017735,2]
[400475401,1767628239212,-199.59024066,0.00017766,2]
[400475402,1767628239222,-410.81178613,0.00017773,2]
[400475403,1767628239232,-6499.53878645,0.00017776,2]
[400475404,1767628239243,-1661.89655609,0.00017776,2]
[400475405,1767628239252,-151.54,0.00017783,2]
[400475406,1767628239262,-1000.0,0.000178,2]
[400475407,1767628239279,-474.4603192,0.00017808,2]
[400475408,1767628239289,-6499.53878645,0.00017818,2]
[400475409,1767628239299,-1661.89655609,0.00017818,2]
[400475410,1767628239310,-175.96702,0.0001782,2]
[400475411,1767628239321,-175.96702,0.0001782,2]
[400475412,1767628239331,-175.96702,0.0001783,2]
[400475413,1767628239341,-6499.53878645,0.00017859,2]
[400475414,1767628239352,-1661.89655609,0.00017859,2]
[400475415,1767628239362,-175.96703,0.0001786,2]
[400475416,1767628239371,-175.96702,0.0001788,2]
[400475417,1767628239381,-500.0,0.00017899,2]
[400475418,1767628239391,-500.0,0.00017899,2]
[400475419,1767628239401,-500.0,0.00017899,2]
[400475420,1767628239411,-293.04364242,0.00017899,2]
[400475421,1767628239420,-714.53529179,0.00017899,2]
[400475422,1767628239430,-479.55,0.000179,2]
[400475423,1767628239439,-10000.0,0.000179,2]
[400475424,1767628239448,-262.46401398,0.000179,2]
[400475425,1767628239458,-196.31661926,0.000179,2]
[400475426,1767628239468,-6499.53878645,0.000179,2]
[400475427,1767628239480,-1661.89655609,0.000179,2]
[400475428,1767628239491,-1820.81806295,0.000179,2]
[400475429,1767628239501,-981.0,0.000179,2]
[400475430,1767628239511,-175.96702,0.0001791,2]
[400475431,1767628239521,-1403.0,0.00017936,2]
[400475432,1767628239530,-1329.0,0.00017936,2]
[400475433,1767628239539,-4816.0,0.00017936,2]
[400475434,1767628239549,-2435.0,0.00017936,2]
[400475435,1767628239559,-1199.0,0.00017936,2]
[400475436,1767628239568,-354.69330015,0.00017973,2]
[400475437,1767628239577,-474.4603192,0.0001799,2]
[400475438,1767628239587,-474.4603192,0.0001799,2]
[400475439,1767628239601,-4257.8127419,0.00017999,2]
[400475440,1767628239611,-337336.0719739,0.00017999,2]
[400475441,1767628239620,-26096.6689111,0.00017999,2]
[400475442,1767628239629,-169552.3596174,0.00018,2]
[400475443,1767628239638,-150.967,0.00018,2]
[400475444,1767628239649,-443609.90945998,0.00018,2]
[400475445,1767628239658,-59517.30932848,0.00018,2]
[400475446,1767628239673,-1708.36648984,0.00018,2]
[400475447,1767628239684,-1045.80767326,0.00018,2]
[400475448,1767628239696,-10382.20550006,0.00018,2]
[400475449,1767628239707,-1080.60403,0.00018,2]
[400475450,1767628239718,-91364.96258923,0.00018,2]
[400475451,1767628239742,-4504.30183476,0.00018,2]
[400475452,1767628239754,-93491.76871466,0.00018,2]
[400475453,1767628239765,-3517.13058712,0.00018,2]
[400475454,1767628239776,-2256.70555665,0.00018,2]
[400475455,1767628239787,-47012.49999997,0.00018,2]
[400475457,1767628239799,-4141.776292,0.00018,2]
[400475458,1767628239810,-2530.7709,0.00018,2]
[400475459,1767628239821,-439.48628052,0.00018,2]
[400475460,1767628239834,-2416.93348734,0.00018,2]
[400475462,1767628239848,-12477.0,0.00018,2]
[400475466,1767628240074,-199.59024066,0.000179,2]
[400475467,1767628240083,-25993.86096244,0.00018,2]
[400475468,1767628240096,-1100.79986322,0.00018,2]
[400475469,1767628240109,-615.00501975,0.00018,2]
[400475470,1767628240122,-4269.86714035,0.00018,2]
[400475471,1767628240258,-45939.90408802,0.00018,2]
[400475472,1767628240272,-591.07158026,0.00018,2]
[400475473,1767628240286,-1542.26069336,0.00018,2]
[400475474,1767628240427,-88571.87015238,0.00018,2]
[400475475,1767628240445,-6211.97940829,0.00018,2]
[400475476,1767628240457,-838.48,0.00018,2]
[400475498,1767628243861,-741.8501,0.00018,2]
[400475501,1767628243873,-8672.63208554,0.00018,2]
[400475503,1767628243886,-24126.10112386,0.00018,2]
[400475504,1767628244010,-542423.12120903,0.00018,2]
[400475505,1767628244022,-370.73067957,0.00018,2]
[400475506,1767628244889,-2640.14343316,0.00018,2]
[400475507,1767628244899,-17719.70128467,0.00018,2]
[400475510,1767628246036,-151.0,0.00017404,2]
[400475511,1767628246047,-200.5521247,0.00018,2]
[400475512,1767628246180,-500.0,0.0001752,2]
[400475513,1767628246191,-11945.97277717,0.00018,2]
[400475514,1767628246203,-10236.14779082,0.00018,2]
[400475546,1767628589030,-300.0,0.00016933,2]
[400475547,1767628589054,-300.0,0.00016933,2]
[400475548,1767628589077,-798.6629,0.00016934,2]
[400475549,1767628589100,-12998.707,0.00016934,2]
[400475550,1767628589122,-2500.0,0.00016934,2]
[400475551,1767628589144,-173.00574569,0.00016973,2]
[400475552,1767628589167,-334.06674349,0.00016973,2]
[400475553,1767628589188,-251.34339961,0.00017033,2]
[400475554,1767628589216,-82344.21421121,0.00017034,2]
[400475555,1767628594136,6045.25,0.00016438,2]
[400475573,1767628697928,-158.66877959,0.0001694,2]
[400475574,1767628697957,-11576.33122041,0.00017034,2]
[400475575,1767628726936,667.49,0.00013699,2]
[400475634,1767628960994,-195.752,0.00016693,2]
[400475635,1767628961018,-23329.74,0.00016772,2]
[400475636,1767628961044,-500.0,0.00016804,2]
[400475637,1767628961068,-3413.78,0.00016835,2]
[400475638,1767628961093,-298.64811257,0.00016835,2]
[400475639,1767628961120,-292.0,0.00016835,2]
[400475640,1767628961147,-173.00574568,0.0001694,2]
[400475641,1767628961171,-250.0,0.00017,2]
[400475642,1767628961198,-300.0,0.00017033,2]
[400475643,1767628961236,-71247.07414175,0.00017034,2]
[400475648,1767628985025,923.16,8.466e-05,2]
[400475649,1767628985243,923.16,8.912e-05,2]
[400475650,1767628985491,923.16,9.358e-05,2]
[400475651,1767628985952,923.16,9.803e-05,2]
[400475652,1767628985988,923.16,0.00010249,2]
[400475653,1767628986337,923.16,0.00010695,2]
[400475654,1767628986389,923.16,0.0001114,2]
[400475655,1767628986641,923.16,0.00011586,2]
[400475656,1767628987006,923.16,0.00012031,2]
[400475657,1767628987248,923.16,0.00012477,2]
[400475658,1767628987467,923.16,0.00012923,2]
[400475659,1767628987730,923.16,0.00013368,2]
[400475660,1767628987975,923.16,0.00013814,2]
[400475661,1767628988306,923.16,0.00014259,2]
[400475662,1767628988525,923.16,0.00014705,2]
[400475663,1767628988772,923.16,0.00015151,2]
[400475664,1767628989019,923.16,0.00015596,2]
[400475665,1767628989259,923.16,0.00016042,2]
[400475666,1767628989513,923.16,0.00016488,2]
[400475670,1767629009375,-923.16,0.00016933,2]
[400475671,1767629009397,-300.0,0.00017033,2]
[400475672,1767629009424,-198776.84,0.00017034,2]
[400475733,1767629310982,171.52,0.00013348,2]
[400475737,1767629318915,-484.461804,0.00016815,2]
[400475738,1767629318941,-227.20239547,0.000169,2]
[400475739,1767629318966,-3871.1264,0.00016934,2]
[400475740,1767629318992,-186.3914,0.00016934,2]
[400475741,1767629319029,-195230.81800053,0.00016934,2]
[400475744,1767629332328,999.57,0.00032876,120]
[400475745,1767629334863,-3279.73,0.00016876,2]
[400475747,1767629334894,-196720.27,0.00016934,2]
[400475782,1767629432223,-511.71246314,0.00016725,2]
[400475784,1767629432382,-431.83753686,0.00016725,2]
[400475785,1767629432392,-178.83951486,0.0001684,2]
[400475786,1767629432402,-179.76986338,0.00016933,2]
[400475787,1767629432412,-232.35020734,0.00016933,2]
[400475788,1767629432421,-300.0,0.00016933,2]
[400475789,1767629432431,-1200.0,0.00016933,2]
[400475790,1767629432440,-11800.43118932,0.00016934,2]
[400475804,1767629432716,-1594.4736441,0.00016934,2]
[400475806,1767629432728,-7318.77556395,0.00016934,2]
[400475808,1767629432739,-11412.73862202,0.00016934,2]
[400475872,1767629438447,-500.0,0.00016933,2]
[400475873,1767629438457,-81.68808665,0.00016933,2]
[400475874,1767629438471,-418.31191335,0.00016933,2]
[400475875,1767629438494,-500.0,0.00016933,2]
[400475876,1767629438518,-500.0,0.00016933,2]
[400475877,1767629438540,-500.0,0.00016933,2]
[400475878,1767629438562,-500.0,0.00016933,2]
[400475879,1767629438586,-215.74010665,0.00016933,2]
[400475880,1767629438608,-6745.58629112,0.00016934,2]
[400475881,1767629438637,-482968.26138896,0.00016934,2]
[400475882,1767629438660,-828.0,0.0001704,2]
[400475883,1767629438685,-574.12855637,0.00017099,2]
[400475884,1767629438707,-500.0,0.00017173,2]
[400475885,1767629438730,-500.0,0.00017173,2]
[400475886,1767629438754,-500.0,0.00017173,2]
[400475887,1767629438776,-500.0,0.00017173,2]
[400475888,1767629438801,-500.0,0.00017173,2]
[400475889,1767629438819,-500.0,0.00017173,2]
[400475891,1767629438829,-500.0,0.00017173,2]
[400475893,1767629438839,-166.66,0.00017308,2]
[400475895,1767629438849,-151.0,0.00017358,2]
[400475896,1767629438859,-151.0,0.00017358,2]
[400475897,1767629438868,-253.0,0.00017394,2]
[400475898,1767629438877,-151.0,0.00017412,2]
[400475899,1767629438887,-5595.2032019,0.00017472,2]
[400475900,1767629438896,-1162.0304531,0.00017667,2]
[400475901,1767629438905,-72325.8541711,0.00017667,2]
[400475902,1767629438915,-253.0,0.00017684,2]
[400475903,1767629438925,-1000.0,0.000177,2]
[400475904,1767629438936,-1000.0,0.00017721,2]
[400475905,1767629438946,-1000.0,0.00017721,2]
[400475906,1767629438955,-347.68423544,0.00017721,2]
[400475907,1767629438965,-1000.0,0.00017721,2]
[400475908,1767629438975,-1000.0,0.00017721,2]
[400475909,1767629438984,-218.2586549,0.00017721,2]
[400475910,1767629438993,-1000.0,0.00017721,2]
[400475911,1767629439005,-253.0,0.00017783,2]
[400475912,1767629439015,-1000.0,0.000178,2]
[400475913,1767629439024,-168.0,0.00017805,2]
[400475914,1767629439034,-500.0,0.00017808,2]
[400475915,1767629439044,-504.75468002,0.00017808,2]
[400475916,1767629439053,-1000.0,0.00017808,2]
[400475917,1767629439063,-1000.0,0.00017808,2]
[400475918,1767629439072,-1000.0,0.00017808,2]
[400475919,1767629439082,-1000.0,0.00017808,2]
[400475920,1767629439091,-1076.95721268,0.00017808,2]
[400475921,1767629439100,-381.74894176,0.00017808,2]
[400475922,1767629439109,-500.0,0.00017808,2]
[400475923,1767629439119,-500.0,0.00017808,2]
[400475924,1767629439128,-506.03381826,0.00017808,2]
[400475925,1767629439137,-754.32,0.00017808,2]
[400475926,1767629439147,-307.38179,0.0001782,2]
[400475927,1767629439156,-307.38179,0.0001782,2]
[400475928,1767629439166,-307.38179,0.0001783,2]
[400475929,1767629439177,-253.0,0.00017858,2]
[400475930,1767629439186,-307.38179,0.0001786,2]
[400475931,1767629439206,-1200.0,0.00017876,2]
[400475932,1767629439216,-913.0,0.00017876,2]
[400475933,1767629439225,-4816.0,0.00017876,2]
[400475934,1767629439235,-4934.386,0.00017876,2]
[400475935,1767629439245,-2435.0,0.00017876,2]
[400475936,1767629439255,-166.66,0.00017879,2]
[400475937,1767629439265,-307.38179,0.0001788,2]
[400475938,1767629439275,-158.45968873,0.000179,2]
[400475939,1767629439284,-300.66006907,0.000179,2]
[400475940,1767629439294,-1517.3483858,0.000179,2]
[400475941,1767629439303,-178.83951486,0.000179,2]
[400475942,1767629439314,-174.97600932,0.000179,2]
[400475943,1767629439324,-307.38179,0.0001791,2]
[400475944,1767629439335,-3458.0,0.00017936,2]
[400475945,1767629439344,-1404.0,0.00017936,2]
[400475946,1767629439353,-1266.0,0.00017936,2]
[400475947,1767629439363,-433.0,0.00017936,2]
[400475948,1767629439373,-215.11491997,0.00017973,2]
[400475949,1767629439383,-240.19280183,0.00017974,2]
[400475950,1767629439393,-4674.1552653,0.00017997,2]
[400475951,1767629439403,-882.0,0.00018,2]
[400475952,1767629439412,-77736.95987532,0.00018,2]
[400475955,1767629441213,-270.67999982,0.00018,2]
[400475968,1767629446251,-291.637896,0.00017876,2]
[400475969,1767629446263,-273.362104,0.00017876,2]
[400475970,1767629446273,-11530.62467914,0.00018,2]
[400475971,1767629446285,-9428.85092983,0.00018,2]
[400475972,1767629446296,-466.81370507,0.00018,2]
[400475973,1767629446327,-61236.09761277,0.00018,2]
[400475974,1767629446339,-82732.69066058,0.00018,2]
[400475975,1767629446375,-8022.30645606,0.00018,2]
[400475976,1767629446386,-3607.02658723,0.00018,2]
[400475977,1767629446398,-897.45,0.00018,2]
[400475978,1767629446410,-1490.19223432,0.00018,2]
[400475979,1767629446422,-23916.42488506,0.00018,2]
[400475981,1767629448046,-345.69,0.00018,2]
[400475982,1767629448058,-619.94646908,0.00018,2]
[400476012,1767629449402,-151.0,0.00017857,2]
[400476013,1767629449411,-151.0,0.00017857,2]
[400476014,1767629449422,-710.68459326,0.00018,2]
[400476015,1767629449433,-16554.12956992,0.00018,2]
[400476016,1767629449445,-12520.38313643,0.00018,2]
[400476017,1767629449456,-735.24608787,0.00018,2]
[400476018,1767629449467,-5559.86373034,0.00018,2]
[400476019,1767629449479,-447.27153168,0.00018,2]
[400476020,1767629449490,-3152.19488824,0.00018,2]
[400476021,1767629449501,-850.25336523,0.00018,2]
[400476022,1767629449512,-357.64182105,0.00018,2]
[400476024,1767629493883,679.283,0.00016497,2]
[400476029,1767629537738,166.66,0.00015938,2]
[400476030,1767629537954,166.66,0.00016273,2]
[400476034,1767629681816,274.0303968,0.00015356,2]
[400476042,1767629901802,168.0,0.00016494,2]
[400476043,1767629926341,150.0,0.00016139,2]
[400476046,1767630031289,1480.78,0.0001619,2]
[400476049,1767630109639,1000.0,0.00015993,2]
[400476053,1767630193662,150.0,0.00015971,2]
[400476066,1767630306417,157.32,0.0001597,2]
[400476068,1767630315072,624.84866986,0.00032876,120]
[400476069,1767630315570,500.0,0.00032876,120]
[400476071,1767630315822,500.0,0.00032876,120]
[400476072,1767630316067,500.0,0.00032876,120]
[400476073,1767630316307,537.73484295,0.00032876,120]
[400476074,1767630316391,206.87822481,0.00032876,120]
[400476075,1767630317316,234.21633476,0.00032876,120]
[400476076,1767630317530,452.27519008,0.00032876,120]
[400476077,1767630317984,432.74287626,0.00032876,120]
[400476078,1767630319653,386.34880628,0.00032876,120]
[400476079,1767630320177,500.0,0.00032876,120]
[400476080,1767630320419,500.0,0.00032876,120]
[400476081,1767630320535,500.0,0.00032876,120]
[400476082,1767630320655,500.0,0.00032876,120]
[400476083,1767630320771,500.0,0.00032876,120]